{"text_format":"1","workbook":"xlsx","n_sheets":3,"sheets":["data","map","数据实例"],"not_rendered":{"charts":0,"images":4,"macros":1,"external_links":0,"defined_names":15,"comments":0,"pivot_tables":0},"unopened":[],"bounds":{"document_bytes":16777216,"sheet_cells":100000,"rows_first":2000,"rows_last":500,"rows_between":2000,"halvings":0,"cell_chars":16384,"cell_head_chars":4096},"cells_cut":0,"cells_raw":0,"read":"whole","date_system":"1900"}

{"sheet":"data","index":0,"n_rows":82,"n_cols":84,"rows_kept":82,"cut":false,"hidden":false,"merged":[[0,6,0,7]]}
[null,null,null,null,null,null,"参考"]
[null,null,null,null,null,null,"最小值",{"$f":"QUARTILE($C$11:$C$63,0)","v":0},null,null,null,null,null,null,null,null,null,null,"0"]
[null,null,null,null,null,null,"下四分位数",{"$f":"QUARTILE($C$11:$C$63,1)","v":3591},null,null,null,null,null,null,null,null,null,null,"0.0"]
[null,null,null,null,null,null,"中位数",{"$f":"QUARTILE($C$11:$C$63,2)","v":4922},null,null,null,null,null,null,null,null,null,null,"0.00"]
[null,null,null,null,null,null,"上四分位数",{"$f":"QUARTILE($C$11:$C$63,3)","v":6176},null,null,null,null,null,null,null,null,null,null,"0%"]
[null,null,null,null,null,null,"最大值",{"$f":"QUARTILE($C$11:$C$63,4)","v":11408},null,null,null,null,null,null,null,null,null,null,"0.0%"]
[null,null,null,null,null,null,null,null,null,10,null,null,null,null,true,null,true,null,"0.00%"]
[null,"使用步骤：","❶填入数据",null,null,null,"❷设置分档",null,"选择配色",null,null,"❸填色",null,null,null,null,null,"格式：","0"]
[]
["形状名称","州名","指标","颜色","标签",null,"阈值",null,"图例",null,null,null,null,null,null,null,null,null,null,null,null,null,null,null,null,null,1,2,3,4,5,6,7,8,9,10,11,12,13,14,15,16,17,18,19,20,21,22,23,24,25,26,27,28,29,30,31,32,33,34,35,36,37,38,39,40,41,42,43,44,45,46,47,48,49,50,51,52,53,54,55,56,57,58]
["AK","Alaska",5064,{"$f":"VLOOKUP(C11,color_table,2,1)","v":"color3"},{"$f":"IF(show_province,A11,\"\")&IF(AND(show_province,show_numbers),CHAR(10),\"\")&IF(show_numbers,TEXT(C11,numbers_format),\"\")","v":"AK\n5064"},null,0,"color1",null,{"$f":"IF(AND(ISBLANK(G11),ISBLANK(G12)),\"\",CONCATENATE(\"[\",TEXT(G11,numbers_format),\" ,\",IF(ISBLANK(G12),\"\",TEXT(G12,numbers_format)),\")\"))","v":"[0 ,2500)"}]
["AL","Alabama",5732,"color3","AL\n5732",null,2500,"color2",null,{"$f":"IF(AND(ISBLANK(G12),ISBLANK(G13)),\"\",CONCATENATE(\"[\",TEXT(G12,numbers_format),\" ,\",IF(ISBLANK(G13),\"\",TEXT(G13,numbers_format)),\")\"))","v":"[2500 ,5000)"}]
["AR","Arkansas",5861,"color3","AR\n5861",null,5000,"color3",null,{"$f":"IF(AND(ISBLANK(G13),ISBLANK(G14)),\"\",CONCATENATE(\"[\",TEXT(G13,numbers_format),\" ,\",IF(ISBLANK(G14),\"\",TEXT(G14,numbers_format)),\")\"))","v":"[5000 ,7500)"}]
["AZ","Arizona",5335,"color3","AZ\n5335",null,7500,"color4",null,{"$f":"IF(AND(ISBLANK(G14),ISBLANK(G15)),\"\",CONCATENATE(\"[\",TEXT(G14,numbers_format),\" ,\",IF(ISBLANK(G15),\"\",TEXT(G15,numbers_format)),\")\"))","v":"[7500 ,10000)"}]
["CA","California",3591,"color2","CA\n3591",null,10000,"color5",null,{"$f":"IF(AND(ISBLANK(G15),ISBLANK(G16)),\"\",CONCATENATE(\"[\",TEXT(G15,numbers_format),\" , \",IF(ISBLANK(G16),\"\",TEXT(G16,numbers_format))))","v":"[10000 , "}]
["CO","Colorado",4782,"color2","CO\n4782"]
["CT","Connecticut",3934,"color2","CT\n3934"]
["DC","District Of Columbia",3396,"color2","DC\n3396"]
["DE","Delaware",4383,"color2","DE\n4383"]
["FL","Florida",5002,"color3","FL\n5002"]
["GA","Georgia",4922,"color2","GA\n4922"]
["HI","Hawaii",1300,"color1","HI\n1300",null,{"$f":"IF(AND(COUNTA(G11:G20)<=5,J7>35),\"请注意，配色方案应与分档设置相匹配，如5档对应5个颜色。\",\"\")","v":""},null,null,null,null,null,null,null,null,null,null,null,null,null,null,null,null,null,null,null,"5档、单色渐变，反映数据从小到大",null,null,null,null,null,null,null,null,null,null,null,null,null,null,null,null,null,"5档、双色渐变，从负到正",null,null,null,null,null,null,null,null,"5档、离散类别",null,null,null,null,null,null,null,"10档、双色渐变",null,null,null,null,null,null,null,null,null,null,null,null,null,null,"10档、单色渐变"]
["IA","Iowa",7898,"color4","IA\n7898"]
["ID","Idaho",6624,"color3","ID\n6624"]
["IL","Illinois",6376,"color3","IL\n6376",null,null,null,null,null,null,null,null,null,null,null,null,null,null,null,null,null,null,null,null,null,null,null,null,null,null,null,null,null,null,null,null,null,null,null,null,null,null,null,null,null,null,null,null,null,null,null,null,null,null,null,null,null,null,null,null,null,null,null,null,null,null,null,null,null,null,null,null,null,null,null,null,null,null,null,null,null,null,1]
["IN","Indiana",5954,"color3","IN\n5954",null,null,null,null,null,null,null,null,null,null,null,null,null,null,null,null,null,null,null,null,null,null,null,null,null,null,null,null,null,null,null,null,null,null,null,null,null,null,null,null,null,null,null,null,null,null,null,null,null,null,null,null,null,null,null,null,null,null,null,null,null,null,null,null,null,null,null,null,null,null,null,null,null,null,null,null,null,null,2]
["KS","Kansas",6176,"color3","KS\n6176",null,null,null,null,null,null,null,null,null,null,null,null,null,null,null,null,null,null,null,null,null,null,null,null,null,null,null,null,null,null,null,null,null,null,null,null,null,null,null,null,null,null,null,null,null,null,null,null,null,null,null,null,null,null,null,null,null,null,null,null,null,null,null,null,null,null,null,null,null,null,null,null,null,null,null,null,null,null,3]
["KY","Kentucky",4680,"color2","KY\n4680",null,null,null,null,null,null,null,null,null,null,null,null,null,null,null,null,null,null,null,null,null,null,null,null,null,null,null,null,null,null,null,null,null,null,null,null,null,null,null,null,null,null,null,null,null,null,null,null,null,null,null,null,null,null,null,null,null,null,null,null,null,null,null,null,null,null,null,null,null,null,null,null,null,null,null,null,null,null,4]
["LA","Louisiana",5556,"color3","LA\n5556",null,null,null,null,null,null,null,null,null,null,null,null,null,null,null,null,null,null,null,null,null,null,null,null,null,null,null,null,null,null,null,null,null,null,null,null,null,null,null,null,null,null,null,null,null,null,null,null,null,null,null,null,null,null,null,null,null,null,null,null,null,null,null,null,null,null,null,null,null,null,null,null,null,null,null,null,null,null,5]
["MA","Massachusetts",3900,"color2","MA\n3900",null,null,null,null,null,null,null,null,null,null,null,null,null,null,null,null,null,null,null,null,null,null,null,null,null,null,null,null,null,null,null,null,null,null,null,null,null,null,null,null,null,null,null,null,null,null,null,null,null,null,null,null,null,null,null,null,null,null,null,null,null,null,null,null,null,null,null,null,null,null,null,null,null,null,null,null,null,null,6]
["MD","Maryland",3738,"color2","MD\n3738",null,null,null,null,null,null,null,null,null,null,null,null,null,null,null,null,null,null,null,null,null,null,null,null,null,null,null,null,null,null,null,null,null,null,null,null,null,null,null,null,null,null,null,null,null,null,null,null,null,null,null,null,null,null,null,null,null,null,null,null,null,null,null,null,null,null,null,null,null,null,null,null,null,null,null,null,null,null,7]
["ME","Maine",1110,"color1","ME\n1110",null,null,null,null,null,null,null,null,null,null,null,null,null,null,null,null,null,null,null,null,null,null,null,null,null,null,null,null,null,null,null,null,null,null,null,null,null,null,null,null,null,null,null,null,null,null,null,null,null,null,null,null,null,null,null,null,null,null,null,null,null,null,null,null,null,null,null,null,null,null,null,null,null,null,null,null,null,null,8]
["MI","Michigan",4490,"color2","MI\n4490",null,null,null,null,null,null,null,null,null,null,null,null,null,null,null,null,null,null,null,null,null,null,null,null,null,null,null,null,null,null,null,null,null,null,null,null,null,null,null,null,null,null,null,null,null,null,null,null,null,null,null,null,null,null,null,null,null,null,null,null,null,null,null,null,null,null,null,null,null,null,null,null,null,null,null,null,null,null,9]
["MN","Minnesota",6482,"color3","MN\n6482",null,null,null,null,null,null,null,null,null,null,null,null,null,null,null,null,null,null,null,null,null,null,null,null,null,null,null,null,null,null,null,null,null,null,null,null,null,null,null,null,null,null,null,null,null,null,null,null,null,null,null,null,null,null,null,null,null,null,null,null,null,null,null,null,null,null,null,null,null,null,null,null,null,null,null,null,null,null,10]
["MO","Missouri",5400,"color3","MO\n5400",null,null,null,null,null,null,null,null,null,null,null,null,null,null,null,null,null,null,null,null,null,null,null,null,null,null,null,null,null,null,null,null,null,null,null,null,null,null,null,null,null,null,null,null,null,null,null,null,null,null,null,null,null,null,null,null,null,null,null,null,null,null,null,null,null,null,null,null,null,null,null,null,null,null,null,null,null,null,11]
["MS","Mississippi",5791,"color3","MS\n5791",null,null,null,null,null,null,null,null,null,null,null,null,null,null,null,null,null,null,null,null,null,null,null,null,null,null,null,null,null,null,null,null,null,null,null,null,null,null,null,null,null,null,null,null,null,null,null,null,null,null,null,null,null,null,null,null,null,null,null,null,null,null,null,null,null,null,null,null,null,null,null,null,null,null,null,null,null,null,12]
["MT","Montana",6602,"color3","MT\n6602",null,null,null,null,null,null,null,null,null,null,null,null,null,null,null,null,null,null,null,null,null,null,null,null,null,null,null,null,null,null,null,null,null,null,null,null,null,null,null,null,null,null,null,null,null,null,null,null,null,null,null,null,null,null,null,null,null,null,null,null,null,null,null,null,null,null,null,null,null,null,null,null,null,null,null,null,null,null,13]
["NC","North Carolina",3954,"color2","NC\n3954",null,null,null,null,null,null,null,null,null,null,null,null,null,null,null,null,null,null,null,null,null,null,null,null,null,null,null,null,null,null,null,null,null,null,null,null,null,null,null,null,null,null,null,null,null,null,null,null,null,null,null,null,null,null,null,null,null,null,null,null,null,null,null,null,null,null,null,null,null,null,null,null,null,null,null,null,null,null,14]
["ND","North Dakota",11408,"color5","ND\n11408",null,null,null,null,null,null,null,null,null,null,null,null,null,null,null,null,null,null,null,null,null,null,null,null,null,null,null,null,null,null,null,null,null,null,null,null,null,null,null,null,null,null,null,null,null,null,null,null,null,null,null,null,null,null,null,null,null,null,null,null,null,null,null,null,null,null,null,null,null,null,null,null,null,null,null,null,null,null,15]
["NE","Nebraska",7460,"color3","NE\n7460",null,null,null,null,null,null,null,null,null,null,null,null,null,null,null,null,null,null,null,null,null,null,null,null,null,null,null,null,null,null,null,null,null,null,null,null,null,null,null,null,null,null,null,null,null,null,null,null,null,null,null,null,null,null,null,null,null,null,null,null,null,null,null,null,null,null,null,null,null,null,null,null,null,null,null,null,null,null,16]
["NH","New Hampshire",2034,"color1","NH\n2034",null,null,null,null,null,null,null,null,null,null,null,null,null,null,null,null,null,null,null,null,null,null,null,null,null,null,null,null,null,null,null,null,null,null,null,null,null,null,null,null,null,null,null,null,null,null,null,null,null,null,null,null,null,null,null,null,null,null,null,null,null,null,null,null,null,null,null,null,null,null,null,null,null,null,null,null,null,null,17]
["NJ","New Jersey",4282,"color2","NJ\n4282",null,null,null,null,null,null,null,null,null,null,null,null,null,null,null,null,null,null,null,null,null,null,null,null,null,null,null,null,null,null,null,null,null,null,null,null,null,null,null,null,null,null,null,null,null,null,null,null,null,null,null,null,null,null,null,null,null,null,null,null,null,null,null,null,null,null,null,null,null,null,null,null,null,null,null,null,null,null,18]
["NM","New Mexico",5390,"color3",{"$f":"IF(show_province,A43,\"\")&IF(AND(show_province,show_numbers),CHAR(10),\"\")&IF(show_numbers,TEXT(C43,numbers_format),\"\")","v":"NM\n5390"},null,null,null,null,null,null,null,null,null,null,null,null,null,null,null,null,null,null,null,null,null,null,null,null,null,null,null,null,null,null,null,null,null,null,null,null,null,null,null,null,null,null,null,null,null,null,null,null,null,null,null,null,null,null,null,null,null,null,null,null,null,null,null,null,null,null,null,null,null,null,null,null,null,null,null,null,null,null,19]
["NV","Nevada",5811,"color3","NV\n5811",null,null,null,null,null,null,null,null,null,null,null,null,null,null,null,null,null,null,null,null,null,null,null,null,null,null,null,null,null,null,null,null,null,null,null,null,null,null,null,null,null,null,null,null,null,null,null,null,null,null,null,null,null,null,null,null,null,null,null,null,null,null,null,null,null,null,null,null,null,null,null,null,null,null,null,null,null,null,20]
["NY","New York",3519,{"$f":"VLOOKUP(C45,color_table,2,1)","v":"color2"},"NY\n3519",null,null,null,null,null,null,null,null,null,null,null,null,null,null,null,null,null,null,null,null,null,null,null,null,null,null,null,null,null,null,null,null,null,null,null,null,null,null,null,null,null,null,null,null,null,null,null,null,null,null,null,null,null,null,null,null,null,null,null,null,null,null,null,null,null,null,null,null,null,null,null,null,null,null,null,null,null,null,21]
["OH","Ohio",4449,"color2","OH\n4449",null,null,null,null,null,null,null,null,null,null,null,null,null,null,null,null,null,null,null,null,null,null,null,null,null,null,null,null,null,null,null,null,null,null,null,null,null,null,null,null,null,null,null,null,null,null,null,null,null,null,null,null,null,null,null,null,null,null,null,null,null,null,null,null,null,null,null,null,null,null,null,null,null,null,null,null,null,null,22]
["OK","Oklahoma",5793,"color3","OK\n5793",null,null,null,null,null,null,null,null,null,null,null,null,null,null,null,null,null,null,null,null,null,null,null,null,null,null,null,null,null,null,null,null,null,null,null,null,null,null,null,null,null,null,null,null,null,null,null,null,null,null,null,null,null,null,null,null,null,null,null,null,null,null,null,null,null,null,null,null,null,null,null,null,null,null,null,null,null,null,23]
["OR","Oregon",2107,"color1","OR\n2107",null,null,null,null,null,null,null,null,null,null,null,null,null,null,null,null,null,null,null,null,null,null,null,null,null,null,null,null,null,null,null,null,null,null,null,null,null,null,null,null,null,null,null,null,null,null,null,null,null,null,null,null,null,null,null,null,null,null,null,null,null,null,null,null,null,null,null,null,null,null,null,null,null,null,null,null,null,null,24]
["PA","Pennsylvania",3477,"color2","PA\n3477",null,null,null,null,null,null,null,null,null,null,null,null,null,null,null,null,null,null,null,null,null,null,null,null,null,null,null,null,null,null,null,null,null,null,null,null,null,null,null,null,null,null,null,null,null,null,null,null,null,null,null,null,null,null,null,null,null,null,null,null,null,null,null,null,null,null,null,null,null,null,null,null,null,null,null,null,null,null,25]
["PW","Palau",0,"color1","PW\n0",null,null,null,null,null,null,null,null,null,null,null,null,null,null,null,null,null,null,null,null,null,null,null,null,null,null,null,null,null,null,null,null,null,null,null,null,null,null,null,null,null,null,null,null,null,null,null,null,null,null,null,null,null,null,null,null,null,null,null,null,null,null,null,null,null,null,null,null,null,null,null,null,null,null,null,null,null,null,26]
["RI","Rhode Island",6460,"color3","RI\n6460",null,null,null,null,null,null,null,null,null,null,null,null,null,null,null,null,null,null,null,null,null,null,null,null,null,null,null,null,null,null,null,null,null,null,null,null,null,null,null,null,null,null,null,null,null,null,null,null,null,null,null,null,null,null,null,null,null,null,null,null,null,null,null,null,null,null,null,null,null,null,null,null,null,null,null,null,null,null,27]
["SC","South Carolina",4710,"color2","SC\n4710",null,null,null,null,null,null,null,null,null,null,null,null,null,null,null,null,null,null,null,null,null,null,null,null,null,null,null,null,null,null,null,null,null,null,null,null,null,null,null,null,null,null,null,null,null,null,null,null,null,null,null,null,null,null,null,null,null,null,null,null,null,null,null,null,null,null,null,null,null,null,null,null,null,null,null,null,null,null,28]
["SD","South Dakota",9977,"color4","SD\n9977",null,null,null,null,null,null,null,null,null,null,null,null,null,null,null,null,null,null,null,null,null,null,null,null,null,null,null,null,null,null,null,null,null,null,null,null,null,null,null,null,null,null,null,null,null,null,null,null,null,null,null,null,null,null,null,null,null,null,null,null,null,null,null,null,null,null,null,null,null,null,null,null,null,null,null,null,null,null,29]
["TN","Tennessee",6248,"color3","TN\n6248",null,null,null,null,null,null,null,null,null,null,null,null,null,null,null,null,null,null,null,null,null,null,null,null,null,null,null,null,null,null,null,null,null,null,null,null,null,null,null,null,null,null,null,null,null,null,null,null,null,null,null,null,null,null,null,null,null,null,null,null,null,null,null,null,null,null,null,null,null,null,null,null,null,null,null,null,null,null,30]
["TX","Texas",4472,"color2","TX\n4472",null,null,null,null,null,null,null,null,null,null,null,null,null,null,null,null,null,null,null,null,null,null,null,null,null,null,null,null,null,null,null,null,null,null,null,null,null,null,null,null,null,null,null,null,null,null,null,null,null,null,null,null,null,null,null,null,null,null,null,null,null,null,null,null,null,null,null,null,null,null,null,null,null,null,null,null,null,null,31]
["UT","Utah",7040,"color3","UT\n7040",null,null,null,null,null,null,null,null,null,null,null,null,null,null,null,null,null,null,null,null,null,null,null,null,null,null,null,null,null,null,null,null,null,null,null,null,null,null,null,null,null,null,null,null,null,null,null,null,null,null,null,null,null,null,null,null,null,null,null,null,null,null,null,null,null,null,null,null,null,null,null,null,null,null,null,null,null,null,32]
["VA","Virginia",3182,"color2","VA\n3182",null,null,null,null,null,null,null,null,null,null,null,null,null,null,null,null,null,null,null,null,null,null,null,null,null,null,null,null,null,null,null,null,null,null,null,null,null,null,null,null,null,null,null,null,null,null,null,null,null,null,null,null,null,null,null,null,null,null,null,null,null,null,null,null,null,null,null,null,null,null,null,null,null,null,null,null,null,null,33]
["VI","Virgin Islands",1656,"color1","VI\n1656",null,null,null,null,null,null,null,null,null,null,null,null,null,null,null,null,null,null,null,null,null,null,null,null,null,null,null,null,null,null,null,null,null,null,null,null,null,null,null,null,null,null,null,null,null,null,null,null,null,null,null,null,null,null,null,null,null,null,null,null,null,null,null,null,null,null,null,null,null,null,null,null,null,null,null,null,null,null,34]
["VT","Vermont",844,"color1","VT\n844",null,null,null,null,null,null,null,null,null,null,null,null,null,null,null,null,null,null,null,null,null,null,null,null,null,null,null,null,null,null,null,null,null,null,null,null,null,null,null,null,null,null,null,null,null,null,null,null,null,null,null,null,null,null,null,null,null,null,null,null,null,null,null,null,null,null,null,null,null,null,null,null,null,null,null,null,null,null,35]
["WA","Washington",2520,"color2","WA\n2520",null,null,null,null,null,null,null,null,null,null,null,null,null,null,null,null,null,null,null,null,null,null,null,null,null,null,null,null,null,null,null,null,null,null,null,null,null,null,null,null,null,null,null,null,null,null,null,null,null,null,null,null,null,null,null,null,null,null,null,null,null,null,null,null,null,null,null,null,null,null,null,null,null,null,null,null,null,null,36]
["WI","Wisconsin",7778,"color4","WI\n7778",null,null,null,null,null,null,null,null,null,null,null,null,null,null,null,null,null,null,null,null,null,null,null,null,null,null,null,null,null,null,null,null,null,null,null,null,null,null,null,null,null,null,null,null,null,null,null,null,null,null,null,null,null,null,null,null,null,null,null,null,null,null,null,null,null,null,null,null,null,null,null,null,null,null,null,null,null,null,37]
["WV","West Virginia",3237,"color2","WV\n3237",null,null,null,null,null,null,null,null,null,null,null,null,null,null,null,null,null,null,null,null,null,null,null,null,null,null,null,null,null,null,null,null,null,null,null,null,null,null,null,null,null,null,null,null,null,null,null,null,null,null,null,null,null,null,null,null,null,null,null,null,null,null,null,null,null,null,null,null,null,null,null,null,null,null,null,null,null,null,38]
["WY","Wyoming",6558,"color3","WY\n6558",null,null,null,null,null,null,null,null,null,null,null,null,null,null,null,null,null,null,null,null,null,null,null,null,null,null,null,null,null,null,null,null,null,null,null,null,null,null,null,null,null,null,null,null,null,null,null,null,null,null,null,null,null,null,null,null,null,null,null,null,null,null,null,null,null,null,null,null,null,null,null,null,null,null,null,null,null,null,39]
[null,null,null,null,null,null,null,null,null,null,null,null,null,null,null,null,null,null,null,null,null,null,null,null,null,null,null,null,null,null,null,null,null,null,null,null,null,null,null,null,null,null,null,null,null,null,null,null,null,null,null,null,null,null,null,null,null,null,null,null,null,null,null,null,null,null,null,null,null,null,null,null,null,null,null,null,null,null,null,null,null,null,null,40]
[null,null,null,null,null,null,null,null,null,null,null,null,null,null,null,null,null,null,null,null,null,null,null,null,null,null,null,null,null,null,null,null,null,null,null,null,null,null,null,null,null,null,null,null,null,null,null,null,null,null,null,null,null,null,null,null,null,null,null,null,null,null,null,null,null,null,null,null,null,null,null,null,null,null,null,null,null,null,null,null,null,null,null,41]
[null,null,null,null,null,null,null,null,null,null,null,null,null,null,null,null,null,null,null,null,null,null,null,null,null,null,null,null,null,null,null,null,null,null,null,null,null,null,null,null,null,null,null,null,null,null,null,null,null,null,null,null,null,null,null,null,null,null,null,null,null,null,null,null,null,null,null,null,null,null,null,null,null,null,null,null,null,null,null,null,null,null,null,42]
[null,null,null,null,null,null,null,null,null,null,null,null,null,null,null,null,null,null,null,null,null,null,null,null,null,null,null,null,null,null,null,null,null,null,null,null,null,null,null,null,null,null,null,null,null,null,null,null,null,null,null,null,null,null,null,null,null,null,null,null,null,null,null,null,null,null,null,null,null,null,null,null,null,null,null,null,null,null,null,null,null,null,null,43]
[null,null,null,null,null,null,null,null,null,null,null,null,null,null,null,null,null,null,null,null,null,null,null,null,null,null,null,null,null,null,null,null,null,null,null,null,null,null,null,null,null,null,null,null,null,null,null,null,null,null,null,null,null,null,null,null,null,null,null,null,null,null,null,null,null,null,null,null,null,null,null,null,null,null,null,null,null,null,null,null,null,null,null,44]
[null,null,null,null,null,null,null,null,null,null,null,null,null,null,null,null,null,null,null,null,null,null,null,null,null,null,null,null,null,null,null,null,null,null,null,null,null,null,null,null,null,null,null,null,null,null,null,null,null,null,null,null,null,null,null,null,null,null,null,null,null,null,null,null,null,null,null,null,null,null,null,null,null,null,null,null,null,null,null,null,null,null,null,45]
[null,null,null,null,null,null,null,null,null,null,null,null,null,null,null,null,null,null,null,null,null,null,null,null,null,null,null,null,null,null,null,null,null,null,null,null,null,null,null,null,null,null,null,null,null,null,null,null,null,null,null,null,null,null,null,null,null,null,null,null,null,null,null,null,null,null,null,null,null,null,null,null,null,null,null,null,null,null,null,null,null,null,null,46]
[null,null,null,null,null,null,null,null,null,null,null,null,null,null,null,null,null,null,null,null,null,null,null,null,null,null,null,null,null,null,null,null,null,null,null,null,null,null,null,null,null,null,null,null,null,null,null,null,null,null,null,null,null,null,null,null,null,null,null,null,null,null,null,null,null,null,null,null,null,null,null,null,null,null,null,null,null,null,null,null,null,null,null,47]
[null,null,null,null,null,null,null,null,null,null,null,null,null,null,null,null,null,null,null,null,null,null,null,null,null,null,null,null,null,null,null,null,null,null,null,null,null,null,null,null,null,null,null,null,null,null,null,null,null,null,null,null,null,null,null,null,null,null,null,null,null,null,null,null,null,null,null,null,null,null,null,null,null,null,null,null,null,null,null,null,null,null,null,48]
[null,null,null,null,null,null,null,null,null,null,null,null,null,null,null,null,null,null,null,null,null,null,null,null,null,null,null,null,null,null,null,null,null,null,null,null,null,null,null,null,null,null,null,null,null,null,null,null,null,null,null,null,null,null,null,null,null,null,null,null,null,null,null,null,null,null,null,null,null,null,null,null,null,null,null,null,null,null,null,null,null,null,null,49]
[null,null,null,null,null,null,null,null,null,null,null,null,null,null,null,null,null,null,null,null,null,null,null,null,null,null,null,null,null,null,null,null,null,null,null,null,null,null,null,null,null,null,null,null,null,null,null,null,null,null,null,null,null,null,null,null,null,null,null,null,null,null,null,null,null,null,null,null,null,null,null,null,null,null,null,null,null,null,null,null,null,null,null,50]
[null,null,null,null,null,null,null,null,null,null,null,null,null,null,null,null,null,null,null,null,null,null,null,null,null,null,null,null,null,null,null,null,null,null,null,null,null,null,null,null,null,null,null,null,null,null,null,null,null,null,null,null,null,null,null,null,null,null,null,null,null,null,null,null,null,null,null,null,null,null,null,null,null,null,null,null,null,null,null,null,null,null,null,51]
[null,null,null,null,null,null,null,null,null,null,null,null,null,null,null,null,null,null,null,null,null,null,null,null,null,null,null,null,null,null,null,null,null,null,null,null,null,null,null,null,null,null,null,null,null,null,null,null,null,null,null,null,null,null,null,null,null,null,null,null,null,null,null,null,null,null,null,null,null,null,null,null,null,null,null,null,null,null,null,null,null,null,null,52]
[null,null,null,null,null,null,null,null,null,null,null,null,null,null,null,null,null,null,null,null,null,null,null,null,null,null,null,null,null,null,null,null,null,null,null,null,null,null,null,null,null,null,null,null,null,null,null,null,null,null,null,null,null,null,null,null,null,null,null,null,null,null,null,null,null,null,null,null,null,null,null,null,null,null,null,null,null,null,null,null,null,null,null,53]
[null,null,null,null,null,null,null,null,null,null,null,null,null,null,null,null,null,null,null,null,null,null,null,null,null,null,null,null,null,null,null,null,null,null,null,null,null,null,null,null,null,null,null,null,null,null,null,null,null,null,null,null,null,null,null,null,null,null,null,null,null,null,null,null,null,null,null,null,null,null,null,null,null,null,null,null,null,null,null,null,null,null,null,54]
[null,null,null,null,null,null,null,null,null,null,null,null,null,null,null,null,null,null,null,null,null,null,null,null,null,null,null,null,null,null,null,null,null,null,null,null,null,null,null,null,null,null,null,null,null,null,null,null,null,null,null,null,null,null,null,null,null,null,null,null,null,null,null,null,null,null,null,null,null,null,null,null,null,null,null,null,null,null,null,null,null,null,null,55]
[null,null,null,null,null,null,null,null,null,null,null,null,null,null,null,null,null,null,null,null,null,null,null,null,null,null,null,null,null,null,null,null,null,null,null,null,null,null,null,null,null,null,null,null,null,null,null,null,null,null,null,null,null,null,null,null,null,null,null,null,null,null,null,null,null,null,null,null,null,null,null,null,null,null,null,null,null,null,null,null,null,null,null,56]
[null,null,null,null,null,null,null,null,null,null,null,null,null,null,null,null,null,null,null,null,null,null,null,null,null,null,null,null,null,null,null,null,null,null,null,null,null,null,null,null,null,null,null,null,null,null,null,null,null,null,null,null,null,null,null,null,null,null,null,null,null,null,null,null,null,null,null,null,null,null,null,null,null,null,null,null,null,null,null,null,null,null,null,57]
[null,null,null,null,null,null,null,null,null,null,null,null,null,null,null,null,null,null,null,null,null,null,null,null,null,null,null,null,null,null,null,null,null,null,null,null,null,null,null,null,null,null,null,null,null,null,null,null,null,null,null,null,null,null,null,null,null,null,null,null,null,null,null,null,null,null,null,null,null,null,null,null,null,null,null,null,null,null,null,null,null,null,null,58]

{"sheet":"map","index":1,"n_rows":2,"n_cols":1,"rows_kept":2,"cut":false,"hidden":false,"merged":[]}
["PW和VI我隐藏起来了，这两个地方是美国的海外属地或者代管地。"]
["这一页的图形不要乱动"]

{"sheet":"数据实例","index":2,"n_rows":61,"n_cols":16,"rows_kept":61,"cut":false,"hidden":false,"merged":[]}
["State/Territory","Case Rate per 100000",null,null,"州名","指标","如果没找到的话用0代替"]
["Alaska",5064,null,null,"Alaska",{"$f":"VLOOKUP(E2,$A$1:$B$100,2,)","v":5064},{"$f":"IF(ISNA(F2),0,F2)","v":5064},null,null,null,null,null,null,null,null,{"$f":"LOWER(E2)","v":"alaska"}]
["Alabama",5732,null,null,"Alabama",{"$f":"VLOOKUP(E3,$A$1:$B$100,2,)","v":5732},{"$f":"IF(ISNA(F3),0,F3)","v":5732},"蓝色高亮的是我们从网上下载的数据",null,null,null,null,null,null,null,"alabama"]
["Arkansas",5861,null,null,"Arkansas",5861,5861,"https://covid.cdc.gov/",null,null,null,null,null,null,null,"arkansas"]
["American Samoa",5,null,null,"Arizona",5335,5335,"美国各个州或地区每10万人感染新冠肺炎的人数",null,null,null,null,null,null,null,"arizona"]
["Arizona",5335,null,null,"California",3591,3591,null,null,null,null,null,null,null,null,"california"]
["California",3591,null,null,"Colorado",4782,4782,"在右侧我使用了Vlookup函数来查找对应的数据",null,null,null,null,null,null,null,"colorado"]
["Colorado",4782,null,null,"Connecticut",3934,3934,null,null,null,null,null,null,null,null,"connecticut"]
["Connecticut",3934,null,null,"District Of Columbia",3396,3396,"如果大小写不一致的话，你可以先使用lower函数统一设置成小写字母再匹配",null,null,null,null,null,null,null,"district of columbia"]
["District of Columbia",3396,null,null,"Delaware",4383,4383,null,null,null,null,null,null,null,null,"delaware"]
["Delaware",4383,null,null,"Florida",5002,5002,null,null,null,null,null,null,null,null,"florida"]
["Florida",5002,null,null,"Georgia",4922,4922,null,null,null,null,null,null,null,null,"georgia"]
["Federated States of Micronesia",0,null,null,"Hawaii",1300,1300,null,null,null,null,null,null,null,null,"hawaii"]
["Georgia",4922,null,null,"Iowa",7898,7898,null,null,null,null,null,null,null,null,"iowa"]
["Guam",4254,null,null,"Idaho",6624,6624,null,null,null,null,null,null,null,null,"idaho"]
["Hawaii",1300,null,null,"Illinois",6376,6376,null,null,null,null,null,null,null,null,"illinois"]
["Iowa",7898,null,null,"Indiana",5954,5954,null,null,null,null,null,null,null,null,"indiana"]
["Idaho",6624,null,null,"Kansas",6176,6176,null,null,null,null,null,null,null,null,"kansas"]
["Illinois",6376,null,null,"Kentucky",4680,4680,null,null,null,null,null,null,null,null,"kentucky"]
["Indiana",5954,null,null,"Louisiana",5556,5556,null,null,null,null,null,null,null,null,"louisiana"]
["Kansas",6176,null,null,"Massachusetts",3900,3900,null,null,null,null,null,null,null,null,"massachusetts"]
["Kentucky",4680,null,null,"Maryland",3738,3738,null,null,null,null,null,null,null,null,"maryland"]
["Louisiana",5556,null,null,"Maine",1110,1110,null,null,null,null,null,null,null,null,"maine"]
["Massachusetts",3900,null,null,"Michigan",4490,4490,null,null,null,null,null,null,null,null,"michigan"]
["Maryland",3738,null,null,"Minnesota",6482,6482,null,null,null,null,null,null,null,null,"minnesota"]
["Maine",1110,null,null,"Missouri",5400,5400,null,null,null,null,null,null,null,null,"missouri"]
["Michigan",4490,null,null,"Mississippi",5791,5791,null,null,null,null,null,null,null,null,"mississippi"]
["Minnesota",6482,null,null,"Montana",6602,6602,null,null,null,null,null,null,null,null,"montana"]
["Missouri",5400,null,null,"North Carolina",3954,3954,null,null,null,null,null,null,null,null,"north carolina"]
["Northern Mariana Islands",0,null,null,"North Dakota",11408,11408,null,null,null,null,null,null,null,null,"north dakota"]
["Mississippi",5791,null,null,"Nebraska",7460,7460,null,null,null,null,null,null,null,null,"nebraska"]
["Montana",6602,null,null,"New Hampshire",2034,2034,null,null,null,null,null,null,null,null,"new hampshire"]
["North Carolina",3954,null,null,"New Jersey",4282,4282,null,null,null,null,null,null,null,null,"new jersey"]
["North Dakota",11408,null,null,"New Mexico",5390,5390,null,null,null,null,null,null,null,null,{"$f":"LOWER(E34)","v":"new mexico"}]
["Nebraska",7460,null,null,"Nevada",5811,5811,null,null,null,null,null,null,null,null,"nevada"]
["New Hampshire",2034,null,null,"New York",3519,{"$f":"IF(ISNA(F36),0,F36)","v":3519},null,null,null,null,null,null,null,null,"new york"]
["New Jersey",4282,null,null,"Ohio",4449,4449,null,null,null,null,null,null,null,null,"ohio"]
["New Mexico",5390,null,null,"Oklahoma",5793,5793,null,null,null,null,null,null,null,null,"oklahoma"]
["Nevada",5811,null,null,"Oregon",2107,2107,null,null,null,null,null,null,null,null,"oregon"]
["New York",3519,null,null,"Pennsylvania",3477,3477,null,null,null,null,null,null,null,null,"pennsylvania"]
["New York City",4184,null,null,"Palau",0,0,null,null,null,null,null,null,null,null,"palau"]
["Ohio",4449,null,null,"Rhode Island",6460,6460,null,null,null,null,null,null,null,null,"rhode island"]
["Oklahoma",5793,null,null,"South Carolina",4710,4710,null,null,null,null,null,null,null,null,"south carolina"]
["Oregon",2107,null,null,"South Dakota",9977,9977,null,null,null,null,null,null,null,null,"south dakota"]
["Pennsylvania",3477,null,null,"Tennessee",6248,6248,null,null,null,null,null,null,null,null,"tennessee"]
["Puerto Rico",1861,null,null,"Texas",4472,4472,null,null,null,null,null,null,null,null,"texas"]
["Palau",0,null,null,"Utah",7040,7040,null,null,null,null,null,null,null,null,"utah"]
["Rhode Island",6460,null,null,"Virginia",3182,3182,null,null,null,null,null,null,null,null,"virginia"]
["Republic of Marshall Islands",7,null,null,"Virgin Islands",1656,1656,null,null,null,null,null,null,null,null,"virgin islands"]
["South Carolina",4710,null,null,"Vermont",844,844,null,null,null,null,null,null,null,null,"vermont"]
["South Dakota",9977,null,null,"Washington",2520,2520,null,null,null,null,null,null,null,null,"washington"]
["Tennessee",6248,null,null,"Wisconsin",7778,7778,null,null,null,null,null,null,null,null,"wisconsin"]
["Texas",4472,null,null,"West Virginia",3237,3237,null,null,null,null,null,null,null,null,"west virginia"]
["Utah",7040,null,null,"Wyoming",6558,6558,null,null,null,null,null,null,null,null,"wyoming"]
["Virginia",3182]
["Virgin Islands",1656]
["Vermont",844]
["Washington",2520]
["Wisconsin",7778]
["West Virginia",3237]
["Wyoming",6558]